fUSD/lending_fUSD_20251031
["ID","MTS","AMOUNT","RATE_DAILY","PERIOD"]
[392753421,1761917438775,-384.96,0.000148,2]
[392753423,1761917438785,-176.7,0.000148,2]
[392753424,1761917438799,-176.7,0.000148,2]
[392753425,1761917438809,-176.7,0.000148,2]
[392753426,1761917438819,-168.39,0.000148,2]
[392753427,1761917438829,-384.43,0.000148,2]
[392753428,1761917438839,-620.29362383,0.00014844,2]
[392753429,1761917438849,-453.88049,0.0001485,2]
[392753430,1761917438859,-150.0,0.000149,2]
[392753432,1761917438869,-177.6,0.000149,2]
[392753433,1761917438880,-197.12,0.000149,2]
[392753435,1761917438890,-353.4,0.000149,2]
[392753437,1761917438900,-353.4,0.000149,2]
[392753438,1761917438910,-176.7,0.000149,2]
[392753439,1761917438920,-290.7383352,0.000149,2]
[392753440,1761917438930,-5000.0,0.000149,2]
[392753441,1761917438941,-620.29362383,0.000149,2]
[392753442,1761917438951,-217.82980486,0.000149,2]
[392753443,1761917438960,-167.89927512,0.000149,2]
[392753444,1761917438970,-500.0,0.00014973,2]
[392753445,1761917438980,-510.33341494,0.00014973,2]
[392753446,1761917438990,-500.0,0.00014973,2]
[392753447,1761917439000,-519.25430846,0.00014973,2]
[392753448,1761917439011,-500.0,0.00014973,2]
[392753449,1761917439021,-500.0,0.00014973,2]
[392753450,1761917439031,-500.0,0.00014973,2]
[392753451,1761917439041,-500.0,0.00014973,2]
[392753452,1761917439052,-207.74721825,0.00014973,2]
[392753453,1761917439062,-500.0,0.00014973,2]
[392753454,1761917439072,-500.0,0.00014973,2]
[392753455,1761917439084,-453.8805,0.0001498,2]
[392753456,1761917439094,-162.163,0.00014992,2]
[392753457,1761917439104,-3367.177,0.00014994,2]
[392753458,1761917439114,-151.0,0.00014997,2]
[392753459,1761917439124,-914.77699343,0.00014998,2]
[392753460,1761917439135,-222.78102242,0.00014999,2]
[392753461,1761917439145,-155.0,0.00014999,2]
[392753462,1761917439155,-150.0,0.00014999,2]
[392753463,1761917439166,-150.0,0.00014999,2]
[392753464,1761917439179,-503.61719035,0.00014999,2]
[392753465,1761917439189,-500.0,0.00014999,2]
[392753466,1761917439199,-849.0,0.00015,2]
[392753467,1761917439210,-277227.81301319,0.00015,2]
[392753468,1761917439220,-3768493.21217026,0.00015,2]
[392753469,1761917439230,-2027.73488218,0.00015,2]
[392753470,1761917439240,-7893.81958783,0.00015,2]
[392753471,1761917439249,-492698.26129845,0.00015,2]
[392753472,1761917439263,-3530.8,0.00015,2]
[392753476,1761917440739,-1.6e-07,0.00015,2]
[392753477,1761917440754,-633.78350185,0.00015,2]
[392753654,1761917443276,-462.15009088,0.00014973,2]
[392753655,1761917443389,-37.84990912,0.00014973,2]
[392753656,1761917443398,-305.26009088,0.00015,2]
[392753657,1761917443410,-1986.4932252,0.00015,2]
[392753691,1761917446319,-1532.84775385,0.00015,2]
[392753692,1761917446437,-735.004599,0.00015,2]
[392753693,1761917446449,-995.4844892,0.00015,2]
[392753697,1761917467971,1320.91245939,0.00030137,120]
[392753699,1761917560966,228.366193,0.00030137,120]
[392753701,1761917657786,978.07092123,0.00014999,5]
[392753702,1761917657852,1286.14361419,0.00014999,5]
[392753703,1761917657889,1286.1436142,0.00014999,5]
[392753705,1761917899012,431.25,0.00013825,2]
[392753706,1761917934875,200.0,0.00013835,2]
[392753708,1761918078667,327.74,0.00013765,2]
[392753709,1761918266832,1000.0,0.00013613,2]
[392753710,1761918367159,290.0,0.0003,120]
[392753711,1761918409726,150.0,0.00013702,2]
[392753712,1761918410127,150.0,0.00013702,120]
[392753713,1761918445860,-150.0,0.00014064,2]
[392753714,1761918524868,-711.29295566,0.0001434,2]
[392753715,1761918524890,-1588.85474491,0.0001434,2]
[392753716,1761918533540,-300.0,0.00014369,2]
[392753717,1761918533561,-300.0,0.00014369,2]
[392753718,1761918533583,-300.0,0.00014369,2]
[392753719,1761918533605,-1200.0,0.0001437,2]
[392753720,1761918542907,-300.0,0.00014371,2]
[392753721,1761918542937,-1200.0,0.00014371,2]
[392753722,1761918542959,-150.0,0.00014372,2]
[392753723,1761918542981,-300.0,0.00014372,2]
[392753724,1761918543002,-198.02912071,0.00014373,2]
[392753725,1761918543024,-500.0,0.00014373,2]
[392753726,1761918543046,-500.0,0.00014373,2]
[392753727,1761918543067,-198.65453119,0.00014373,2]
[392753728,1761918543089,-510.93598988,0.00014373,2]
[392753729,1761918543110,-500.0,0.00014373,2]
[392753730,1761918543131,-500.0,0.00014373,2]
[392753731,1761918543153,-500.0,0.00014373,2]
[392753732,1761918543176,-199.15374532,0.00014373,2]
[392753733,1761918543197,-500.0,0.00014373,2]
[392753734,1761918543227,-200.0,0.00014373,2]
[392753735,1761918549126,159.20554132,0.00014302,2]
[392753736,1761918590968,-300.0,0.00014373,2]
[392753737,1761918592733,882.8398106,0.00014302,2]
[392753738,1761918610889,4330.59,0.00013925,2]
[392753740,1761918632333,-159.20554132,0.00014302,2]
[392753741,1761918632342,-798.80565155,0.00014368,2]
[392753761,1761918638249,-243.23970031,0.00014368,2]
[392753762,1761918638262,-300.0,0.00014383,2]
[392753763,1761918638276,-804.0,0.00014383,2]
[392753764,1761918638286,-151.0,0.00014384,2]
[392753765,1761918638296,-151.0,0.00014384,2]
[392753766,1761918638306,-151.0,0.00014384,2]
[392753767,1761918638315,-151.0,0.00014384,2]
[392753768,1761918638325,-151.0,0.00014384,2]
[392753769,1761918638335,-151.0,0.00014384,2]
[392753770,1761918638344,-151.0,0.00014384,2]
[392753771,1761918638354,-151.0,0.00014384,2]
[392753772,1761918638364,-151.0,0.00014384,2]
[392753773,1761918638375,-151.0,0.00014384,2]
[392753774,1761918638384,-183.3423837,0.00014384,2]
[392753775,1761918638394,-574.12855637,0.00014384,2]
[392753776,1761918638403,-500.0,0.00014384,2]
[392753777,1761918638413,-500.0,0.00014384,2]
[392753778,1761918638422,-500.0,0.00014384,2]
[392753779,1761918638432,-500.0,0.00014384,2]
[392753780,1761918638441,-500.0,0.00014384,2]
[392753781,1761918638450,-287.61899177,0.00014384,2]
[392753782,1761918638462,-151.0,0.00014384,2]
[392753783,1761918638472,-151.0,0.00014384,2]
[392753784,1761918638482,-246.20025685,0.00014384,2]
[392753785,1761918638491,-914.77699343,0.00014392,2]
[392753786,1761918638500,-500.0,0.00014392,2]
[392753787,1761918638512,-500.0,0.00014392,2]
[392753788,1761918638521,-500.0,0.00014392,2]
[392753789,1761918638531,-389.15318749,0.00014392,2]
[392753790,1761918638541,-500.0,0.00014392,2]
[392753791,1761918638550,-500.0,0.00014392,2]
[392753792,1761918638560,-500.0,0.00014392,2]
[392753793,1761918638570,-500.0,0.00014392,2]
[392753794,1761918638579,-500.0,0.00014392,2]
[392753795,1761918638589,-500.0,0.00014392,2]
[392753797,1761918638599,-342461.1735,0.00014393,2]
[392753799,1761918638608,-1588.85474489,0.00014402,2]
[392753801,1761918638617,-1042.04535186,0.00014435,2]
[392753803,1761918638627,-1588.85474489,0.00014464,2]
[392753805,1761918638636,-515.88624332,0.00014492,2]
[392753807,1761918638645,-503.61719035,0.00014492,2]
[392753809,1761918638654,-500.0,0.00014492,2]
[392753811,1761918638664,-500.0,0.00014492,2]
[392753813,1761918638673,-500.0,0.00014492,2]
[392753815,1761918638683,-1042.04535186,0.00014501,2]
[392753817,1761918638693,-1588.85474489,0.00014527,2]
[392753819,1761918638702,-1042.04535186,0.00014568,2]
[392753821,1761918638712,-1588.85474489,0.00014589,2]
[392753823,1761918638721,-667.77455546,0.00014593,2]
[392753825,1761918638730,-159.20554132,0.00014601,2]
[392753827,1761918638740,-1042.04535186,0.00014634,2]
[392753829,1761918638749,-1588.85474489,0.00014651,2]
[392753831,1761918638759,-216.9840125,0.00014685,2]
[392753833,1761918638768,-1042.04535186,0.00014701,2]
[392753835,1761918638778,-1588.85474489,0.00014713,2]
[392753837,1761918638787,-197.0,0.00014747,2]
[392753839,1761918638797,-197.0,0.00014763,2]
[392753841,1761918638807,-1042.04535186,0.00014767,2]
[392753843,1761918638816,-1588.85474489,0.00014776,2]
[392753845,1761918638825,-300.0,0.000148,2]
[392753849,1761918638844,-150.0,0.000148,2]
[392753851,1761918638859,-1042.04535186,0.00014834,2]
[392753853,1761918638869,-1588.85474489,0.00014838,2]
[392753855,1761918638879,-548.92689,0.0001485,2]
[392753857,1761918638888,-255.31452988,0.00014899,2]
[392753859,1761918638899,-616.46525154,0.000149,2]
[392753861,1761918638908,-150.0,0.000149,2]
[392753863,1761918638918,-5000.0,0.000149,2]
[392753865,1761918638928,-2035.1683461,0.000149,2]
[392753867,1761918638938,-471.55,0.000149,2]
[392753869,1761918638947,-1588.85474489,0.000149,2]
[392753871,1761918638959,-486.19,0.000149,2]
[392753873,1761918638970,-159.20554132,0.000149,2]
[392753875,1761918638980,-167.89927512,0.000149,2]
[392753877,1761918638990,-1042.04535186,0.000149,2]
[392753879,1761918639000,-1000.0,0.00014921,2]
[392753881,1761918639013,-595.37131296,0.00014932,2]
[392753883,1761918639023,-180.0,0.00014959,2]
[392753885,1761918639033,-327.49,0.00014964,2]
[392753887,1761918639043,-398.98,0.00014964,2]
[392753889,1761918639052,-519.25430846,0.00014973,2]
[392753891,1761918639063,-511.4774966,0.00014973,2]
[392753893,1761918639073,-500.0,0.00014973,2]
[392753895,1761918639083,-191.2181984,0.00014973,2]
[392753897,1761918639093,-260.99872315,0.00014973,2]
[392753899,1761918639103,-311.4094349,0.00014973,2]
[392753901,1761918639113,-548.92689,0.0001498,2]
[392753904,1761918639123,-503.46395869,0.00014985,2]
[392753906,1761918639132,-223.52391546,0.0001499,2]
[392753908,1761918639142,-223.52391546,0.0001499,2]
[392753909,1761918639151,-223.52391546,0.0001499,2]
[392753910,1761918639161,-162.163,0.00014992,2]
[392753911,1761918639170,-4081.723,0.00014997,2]
[392753912,1761918639179,-151.0,0.00014997,2]
[392753913,1761918639189,-134906.4320055,0.00014998,2]
[392753914,1761918639199,-263.37034909,0.00014999,2]
[392753915,1761918639209,-197.80420441,0.00014999,2]
[392753916,1761918639219,-155.0,0.00014999,2]
[392753917,1761918639228,-500.0,0.00014999,2]
[392753918,1761918639239,-500.0,0.00014999,2]
[392753920,1761918639249,-500.0,0.00014999,2]
[392753922,1761918639260,-500.0,0.00014999,2]
[392753924,1761918639270,-500.0,0.00014999,2]
[392753926,1761918639280,-500.0,0.00014999,2]
[392753927,1761918639290,-150.0,0.00014999,2]
[392753929,1761918639301,-500.0,0.00014999,2]
[392753931,1761918639311,-440.4385336,0.00014999,2]
[392753933,1761918639321,-500.0,0.00014999,2]
[392753935,1761918639330,-1049.0,0.00015,2]
[392753937,1761918639340,-4033733.04288022,0.00015,2]
[392753940,1761918639363,-4191.99760527,0.00015,2]
[392753942,1761918639374,-19152.92126299,0.00015,2]
[392753945,1761918639389,-6132.12885558,0.00015,2]
[392753947,1761918639401,-376.1143845,0.00015,2]
[392753951,1761918639430,-373.0,0.00015,2]
[392753956,1761918639473,-4745.24826635,0.00015,2]
[392753958,1761918639486,-38892.88940375,0.00015,2]
[392753997,1761918641134,-284.2851,0.0001424,2]
[392753998,1761918641144,-510.92988121,0.00014603,2]
[392753999,1761918641154,-216.9840124,0.00014767,2]
[392754000,1761918641163,-1575.46782915,0.00015,2]
[392754001,1761918641181,-810.3540707,0.00015,2]
[392754004,1761918643517,-1061.88716442,0.00015,2]
[392754005,1761918643529,-1140.36997179,0.00015,2]
[392754006,1761918643541,-598.93159185,0.00015,2]
[392754007,1761918643552,-1481.11549128,0.00015,2]
[392754008,1761918643563,-1579.80079329,0.00015,2]
[392754009,1761918643574,-813.09157648,0.00015,2]
[392754010,1761918643585,-800.1384042,0.00015,2]
[392754011,1761918643596,-551.00112789,0.00015,2]
[392754012,1761918643607,-487.2981788,0.00015,2]
[392754013,1761918643621,-183784.50802689,0.00015,2]
[392754017,1761918646623,-1740.65135086,0.00015,2]
[392754021,1761919168632,500.0,0.0003,120]
[392754025,1761919382124,-234.78322556,0.00014192,2]
[392754026,1761919382149,-3.37397394,0.00014192,2]
[392754027,1761919423968,711.95,0.00030137,120]
[392754031,1761919460523,502.62,0.00013699,2]
[392754032,1761919478573,-184.18892034,0.00014192,2]
[392754033,1761919478594,-35.65175621,0.00014242,2]
[392754034,1761919480916,-159.34824379,0.00014242,2]
[392754035,1761919480938,-70.88189734,0.00014292,2]
[392754036,1761919493522,-229.11810266,0.00014292,2]
[392754037,1761919493546,-108.8780222,0.00014292,2]
[392754038,1761919511653,150.0,0.00013488,2]
[392754039,1761919511692,150.0,0.00013488,2]
[392754040,1761919543269,274.39,0.00014069,2]
[392754041,1761919590217,300.0,0.00014999,4]
[392754042,1761919590473,200.0,0.00014999,6]
[392754043,1761919604555,795.83,0.00014028,2]
[392754044,1761919713863,835.9707176,0.00030137,120]
[392754045,1761919755272,176.66,0.00011212,2]
[392754046,1761919783514,156.81,0.00014005,2]
[392754055,1761919831482,-301.0,0.00014291,2]
[392754056,1761919831657,-87.17634615,0.00014291,2]
[392754057,1761919831667,-6019.2471,0.00014293,2]
[392754058,1761919831677,-1200.0,0.00014391,2]
[392754059,1761919831686,-500.0,0.00014392,2]
[392754060,1761919831695,-166.66,0.00014464,2]
[392754061,1761919831704,-388.17634613,0.00014591,2]
[392754062,1761919831715,-20133.99724175,0.00014659,2]
[392754063,1761919831730,-12133.3987832,0.00014659,2]
[392754064,1761919831741,-273.84430536,0.00014659,2]
[392754603,1761919837425,-10653.68189814,0.00014659,2]
[392754605,1761919837435,-510.92988122,0.00014701,2]
[392754607,1761919837445,-388.17634613,0.00014891,2]
[392754609,1761919837454,-150.0,0.00014899,2]
[392754611,1761919837464,-227.31346673,0.000149,2]
[392754613,1761919837473,-3376.7891,0.000149,2]
[392754615,1761919837482,-234.1322,0.000149,2]
[392754617,1761919837491,-592.2961,0.000149,2]
[392754619,1761919837501,-5000.0,0.000149,2]
[392754620,1761919837510,-287.01437549,0.000149,2]
[392754621,1761919837519,-176.51223696,0.000149,2]
[392754622,1761919837527,-2449.46806798,0.000149,2]
[392754623,1761919837538,-167.91541485,0.000149,2]
[392754624,1761919837547,-6630.0,0.00014929,2]
[392754625,1761919837555,-6468.0,0.00014929,2]
[392754626,1761919837564,-559.0,0.00014929,2]
[392754627,1761919837573,-166.66,0.00014941,2]
[392754628,1761919837583,-500.0,0.00014973,2]
[392754629,1761919837596,-500.0,0.00014973,2]
[392754630,1761919837606,-500.0,0.00014973,2]
[392754632,1761919837615,-199.75375206,0.00014973,2]
[392754634,1761919837624,-500.0,0.00014973,2]
[392754636,1761919837634,-162.163,0.00014986,2]
[392754638,1761919837643,-3288.133,0.00014988,2]
[392754640,1761919837654,-44205.08408861,0.0001499,2]
[392754642,1761919837663,-574.12855637,0.00014991,2]
[392754644,1761919837675,-209.90590972,0.00014999,2]
[392754646,1761919837684,-500.0,0.00014999,2]
[392754648,1761919837694,-500.0,0.00014999,2]
[392754650,1761919837704,-500.0,0.00014999,2]
[392754652,1761919837714,-500.0,0.00014999,2]
[392754654,1761919837723,-500.0,0.00014999,2]
[392754655,1761919837732,-155.0,0.00014999,2]
[392754658,1761919837742,-150.0,0.00014999,2]
[392754660,1761919837751,-500.0,0.00014999,2]
[392754662,1761919837760,-500.0,0.00014999,2]
[392754663,1761919837769,-440.4385336,0.00014999,2]
[392754665,1761919837779,-152.0,0.00015,2]
[392754667,1761919837790,-152.0,0.00015,2]
[392754669,1761919837799,-152.0,0.00015,2]
[392754671,1761919837809,-152.0,0.00015,2]
[392754673,1761919837819,-825.0,0.00015,2]
[392754676,1761919837829,-152.0,0.00015,2]
[392754678,1761919837838,-152.0,0.00015,2]
[392754680,1761919837847,-825.0,0.00015,2]
[392754682,1761919837857,-152.0,0.00015,2]
[392754684,1761919837866,-152.0,0.00015,2]
[392754686,1761919837875,-825.0,0.00015,2]
[392754689,1761919837885,-155.63303082,0.00015,2]
[392754691,1761919837894,-152.0,0.00015,2]
[392754693,1761919837903,-152.0,0.00015,2]
[392754695,1761919837912,-825.0,0.00015,2]
[392754696,1761919837922,-152.0,0.00015,2]
[392754699,1761919837931,-152.0,0.00015,2]
[392754701,1761919837941,-152.0,0.00015,2]
[392754702,1761919837950,-825.0,0.00015,2]
[392754704,1761919837960,-152.0,0.00015,2]
[392754706,1761919837969,-152.0,0.00015,2]
[392754708,1761919837979,-825.0,0.00015,2]
[392754710,1761919837988,-152.0,0.00015,2]
[392754712,1761919837998,-152.0,0.00015,2]
[392754714,1761919838007,-839.34211334,0.00015,2]
[392754716,1761919838016,-152.0,0.00015,2]
[392754718,1761919838026,-160.27549552,0.00015,2]
[392754720,1761919838036,-825.0,0.00015,2]
[392754722,1761919838046,-155.27657081,0.00015,2]
[392754724,1761919838055,-208.02685986,0.00015,2]
[392754726,1761919838065,-825.0,0.00015,2]
[392754728,1761919838074,-152.0,0.00015,2]
[392754730,1761919838084,-152.0,0.00015,2]
[392754732,1761919838095,-822.0,0.00015,2]
[392754734,1761919838105,-152.0,0.00015,2]
[392754736,1761919838114,-199.55963034,0.00015,2]
[392754738,1761919838123,-168.0,0.00015,2]
[392754740,1761919838133,-300.30372304,0.00015,2]
[392754742,1761919838143,-847.0,0.00015,2]
[392754744,1761919838152,-200488.1402409,0.00015,2]
[392754746,1761919838162,-1000.0,0.00015,2]
[392754748,1761919838172,-1000.0,0.00015,2]
[392754750,1761919838182,-1000.0,0.00015,2]
[392754752,1761919838191,-1000.0,0.00015,2]
[392754754,1761919838201,-1000.0,0.00015,2]
[392754756,1761919838210,-1000.0,0.00015,2]
[392754758,1761919838219,-1000.0,0.00015,2]
[392754760,1761919838229,-1000.0,0.00015,2]
[392754762,1761919838238,-1000.0,0.00015,2]
[392754763,1761919838248,-1000.0,0.00015,2]
[392754766,1761919838258,-1000.0,0.00015,2]
[392754768,1761919838268,-1000.0,0.00015,2]
[392754769,1761919838277,-1000.0,0.00015,2]
[392754772,1761919838289,-1000.0,0.00015,2]
[392754774,1761919838299,-1000.0,0.00015,2]
[392754775,1761919838310,-1000.0,0.00015,2]
[392754778,1761919838320,-540.04739227,0.00015,2]
[392754780,1761919838329,-305.0,0.00015,2]
[392754781,1761919838339,-2402409.31063256,0.00015,2]
[392754783,1761919838348,-237582.10812636,0.00015,2]
[392754785,1761919838358,-150.0,0.00015,2]
[392754787,1761919838367,-163.0,0.00015,2]
[392754789,1761919838377,-1075781.13622364,0.00015,2]
[392754834,1761919838860,-11507.32672946,0.00015,2]
[392754912,1761919839518,-622.45643651,0.00015,2]
[392754914,1761919839530,-377.54600002,0.00015,2]
[392755213,1761919842609,-5310.25750878,0.000149,2]
[392755215,1761919842619,-141032.06739499,0.00015,2]
[392755227,1761919842786,-1957.08212774,0.00015,2]
[392755229,1761919842800,-1096.7890997,0.00015,2]
[392755233,1761919842832,-780.53355334,0.00015,2]
[392755234,1761919842844,-1054.43065065,0.00015,2]
[392755489,1761919845524,-546.03806591,0.00014929,2]
[392755491,1761919845536,-38.92293409,0.00014929,2]
[392755493,1761919845546,-1989.80497188,0.00015,2]
[392755508,1761919845689,-1115.47023058,0.00015,2]
[392755515,1761919845748,-961.88678304,0.00015,2]
[392755517,1761919845760,-782.76473651,0.00015,2]
[392756225,1761920181165,300.0,0.00014999,4]
[392756227,1761920181415,200.0,0.00014999,6]
[392756230,1761920356289,-166.66,0.00014109,2]
[392756231,1761920356310,-50.13416324,0.00014182,2]
[392756232,1761920359745,-179.73778244,0.00014182,2]
[392756233,1761920363270,-179.73778244,0.00014182,2]
[392756234,1761920546523,4918852.5929343,0.00030137,120]
[392756236,1761920713421,150.0,0.00013488,2]
[392756237,1761920799161,-200.0,0.00014129,2]
[392756238,1761920799186,-50.2522473,0.00014135,2]
[392756239,1761920801907,-178.41957176,0.00014135,2]
[392756240,1761920806229,-167.57818094,0.00014135,2]
[392756241,1761920845190,880.8443827,0.00015,30]
[392756242,1761920847424,500.0,0.00015,30]
[392756243,1761920847762,619.1556173,0.00015,30]
[392756244,1761920847792,90.07148195,0.00015,30]
[392756245,1761920883267,3000.0,0.00014,2]
[392756246,1761920906416,-183.16027188,0.00014182,2]
[392756248,1761920917224,1991.95823944,0.00013699,2]
[392756310,1761921032092,-216.79416324,0.00014799,2]
[392756311,1761921032101,-281.0,0.00014899,2]
[392756312,1761921032113,-1200.0,0.00014899,2]
[392756313,1761921032123,-1258.20583676,0.000149,2]
[392756331,1761921037678,-3741.79416324,0.000149,2]
[392756332,1761921037687,-574.02875098,0.000149,2]
[392756333,1761921037699,-179.73778244,0.000149,2]
[392756334,1761921037709,-500.0,0.00014973,2]
[392756335,1761921037718,-476.26470399,0.00014973,2]
[392756336,1761921037727,-274.09328731,0.00014973,2]
[392756337,1761921037737,-574.12855637,0.00014991,2]
[392756338,1761921037746,-150.0,0.00014998,2]
[392756339,1761921037756,-209.90590972,0.00014999,2]
[392756340,1761921037765,-155.0,0.00014999,2]
[392756341,1761921037774,-500.0,0.00014999,2]
[392756342,1761921037784,-500.0,0.00014999,2]
[392756343,1761921037793,-563.72792144,0.00014999,2]
[392756344,1761921037802,-500.0,0.00014999,2]
[392756345,1761921037811,-500.0,0.00014999,2]
[392756346,1761921037821,-500.0,0.00014999,2]
[392756351,1761921038067,-2630.507,0.00014999,2]
[392756353,1761921038079,-1022.69,0.00014999,2]
[392756355,1761921038090,-150.0,0.00014999,2]
[392756357,1761921038100,-500.0,0.00014999,2]
[392756359,1761921038111,-500.0,0.00014999,2]
[392756361,1761921038122,-500.0,0.00014999,2]
[392756363,1761921038131,-500.0,0.00014999,2]
[392756365,1761921038140,-500.0,0.00014999,2]
[392756367,1761921038150,-500.0,0.00014999,2]
[392756369,1761921038160,-500.0,0.00014999,2]
[392756370,1761921038169,-172.04,0.00014999,2]
[392756372,1761921038180,-500.0,0.00014999,2]
[392756374,1761921038190,-440.4385336,0.00014999,2]
[392756376,1761921038200,-500.0,0.00014999,2]
[392756378,1761921038210,-500.0,0.00014999,2]
[392756380,1761921038219,-500.0,0.00014999,2]
[392756382,1761921038229,-500.0,0.00014999,2]
[392756384,1761921038239,-500.0,0.00014999,2]
[392756386,1761921038249,-152.0,0.00014999,2]
[392756388,1761921038258,-1238.0,0.00014999,2]
[392756390,1761921038270,-152.0,0.00014999,2]
[392756392,1761921038279,-1238.0,0.00014999,2]
[392756394,1761921038289,-152.0,0.00014999,2]
[392756396,1761921038298,-152.0,0.00014999,2]
[392756398,1761921038308,-1238.0,0.00014999,2]
[392756400,1761921038318,-152.0,0.00014999,2]
[392756402,1761921038328,-152.0,0.00014999,2]
[392756404,1761921038338,-1238.0,0.00014999,2]
[392756406,1761921038348,-152.0,0.00014999,2]
[392756408,1761921038357,-152.0,0.00014999,2]
[392756411,1761921038367,-1238.0,0.00014999,2]
[392756412,1761921038377,-1238.0,0.00014999,2]
[392756414,1761921038387,-152.0,0.00014999,2]
[392756417,1761921038396,-409.26683856,0.00014999,2]
[392756419,1761921038406,-152.0,0.00014999,2]
[392756420,1761921038415,-152.0,0.00014999,2]
[392756423,1761921038425,-152.0,0.00014999,2]
[392756424,1761921038434,-152.0,0.00014999,2]
[392756426,1761921038444,-152.0,0.00014999,2]
[392756428,1761921038454,-152.0,0.00014999,2]
[392756431,1761921038464,-152.0,0.00014999,2]
[392756433,1761921038474,-152.0,0.00014999,2]
[392756435,1761921038485,-152.0,0.00014999,2]
[392756436,1761921038494,-152.0,0.00014999,2]
[392756438,1761921038505,-152.0,0.00014999,2]
[392756441,1761921038516,-152.0,0.00014999,2]
[392756443,1761921038526,-152.0,0.00014999,2]
[392756445,1761921038536,-152.0,0.00014999,2]
[392756447,1761921038546,-152.0,0.00014999,2]
[392756449,1761921038556,-152.0,0.00014999,2]
[392756450,1761921038565,-152.0,0.00014999,2]
[392756452,1761921038575,-230.97314014,0.00014999,2]
[392756454,1761921038584,-152.0,0.00014999,2]
[392756456,1761921038594,-152.0,0.00014999,2]
[392756459,1761921038604,-152.0,0.00014999,2]
[392756461,1761921038613,-152.0,0.00014999,2]
[392756463,1761921038623,-152.0,0.00014999,2]
[392756464,1761921038632,-152.0,0.00014999,2]
[392756466,1761921038642,-152.0,0.00014999,2]
[392756468,1761921038651,-152.0,0.00014999,2]
[392756470,1761921038661,-152.0,0.00014999,2]
[392756472,1761921038670,-152.0,0.00014999,2]
[392756474,1761921038680,-152.0,0.00014999,2]
[392756476,1761921038689,-214.45547037,0.00014999,2]
[392756478,1761921038698,-152.0,0.00014999,2]
[392756480,1761921038707,-152.0,0.00014999,2]
[392756482,1761921038719,-152.0,0.00014999,2]
[392756483,1761921038728,-152.0,0.00014999,2]
[392756485,1761921038737,-152.0,0.00014999,2]
[392756487,1761921038746,-152.0,0.00014999,2]
[392756489,1761921038758,-1223.0,0.00015,2]
[392756491,1761921038767,-2853390.2122154,0.00015,2]
[392756493,1761921038777,-1061275.24020922,0.00015,2]
[392756495,1761921038789,-3605.41329543,0.00015,2]
[392756498,1761921038808,-16106.86418365,0.00015,2]
[392756500,1761921038819,-16009.18527301,0.00015,2]
[392756502,1761921038831,-6123.74691815,0.00015,2]
[392756505,1761921038842,-346.66636599,0.00015,2]
[392756507,1761921038853,-2185.99785966,0.00015,2]
[392756511,1761921038887,-1437.76353558,0.00015,2]
[392756513,1761921038899,-3708.19353842,0.00015,2]
[392756514,1761921038910,-40421.02774699,0.00015,2]
[392756515,1761921038929,-57944.29995667,0.00015,2]
[392756604,1761921039824,-320.18623037,0.00015,2]
[392756622,1761921039980,-50196.38153554,0.00015,2]
[392756626,1761921040072,-6927.7056,0.00015,2]